fUSD/lending_fUSD_20250420
["ID","MTS","AMOUNT","RATE_DAILY","PERIOD"]
[358425815,1745132338398,500.0,0.00043835,30]
[358425816,1745132338449,553.95,0.00043835,30]
[358425817,1745132338508,500.0,0.00043835,30]
[358425818,1745132338556,500.0,0.00043835,30]
[358425819,1745132338604,500.0,0.00043835,30]
[358425820,1745132338651,553.95,0.00043835,30]
[358425821,1745132338698,500.0,0.00043835,30]
[358425822,1745132338742,500.0,0.00043835,30]
[358425823,1745132338785,500.0,0.00043835,30]
[358425824,1745132338828,500.0,0.00043835,30]
[358425825,1745132338861,830.67116905,0.00018524,2]
[358425826,1745132338904,60983.58,0.00043835,30]
[358425827,1745132338947,553.95,0.00043835,30]
[358425828,1745132338992,500.0,0.00043835,30]
[358425829,1745132339037,577.09544487,0.00043835,30]
[358425830,1745132339082,500.0,0.00043835,30]
[358425831,1745132339126,500.0,0.00043835,30]
[358425832,1745132339174,500.0,0.00043835,30]
[358425833,1745132339218,60983.58,0.00043835,30]
[358425834,1745132339269,553.95,0.00043835,30]
[358425835,1745132339317,500.0,0.00043835,30]
[358425836,1745132339350,830.67116905,0.00018682,2]
[358425837,1745132339400,500.0,0.00043835,30]
[358425838,1745132339448,60983.58,0.00043835,30]
[358425839,1745132339496,301.79582738,0.00043835,30]
[358425840,1745132339541,553.95,0.00043835,30]
[358425841,1745132339584,830.67116905,0.00018997,2]
[358425842,1745132339630,549.05790469,0.00043835,30]
[358425843,1745132339676,500.0,0.00043835,30]
[358425844,1745132339724,60983.58,0.00043835,30]
[358425845,1745132339852,553.95,0.00043835,30]
[358425846,1745132339896,500.0,0.00043835,30]
[358425847,1745132339942,29919.86948519,0.00043835,30]
[358425848,1745132339972,830.67116905,0.00019342,2]
[358425849,1745132354313,2017.61,0.00019222,2]
[358425850,1745132370454,432.207198,0.00019383,2]
[358425851,1745132451012,23900.0,0.00019228,2]
[358425852,1745132461037,830.671169,0.00018745,2]
[358425853,1745132461357,830.671169,0.00018934,2]
[358425854,1745132461640,830.671169,0.00019309,2]
[358425855,1745132485623,366.79,0.00019209,2]
[358425856,1745132575930,13975.01,0.00019215,2]
[358425857,1745132701035,830.6711691,0.00019334,2]
[358425859,1745132777580,662.43,0.00019397,2]
[358425860,1745132822679,830.6711691,0.00019351,2]
[358425861,1745132831245,1217.34,0.00019261,2]
[358425862,1745133029228,753.92,0.00017318,2]
[358425867,1745133031630,-700.0,0.00019495,2]
[358425868,1745133031952,-130.6711691,0.00019495,2]
[358425869,1745133031966,-250.0,0.0001957,2]
[358425870,1745133031975,-753.92,0.00019582,2]
[358425871,1745133031984,-2000.0,0.000196,2]
[358425872,1745133031993,-830.6711691,0.00019736,2]
[358425873,1745133032003,-300.0,0.00019899,2]
[358425874,1745133032012,-891.29250175,0.000199,2]
[358425875,1745133032022,-1689.43483996,0.000199,2]
[358425876,1745133032031,-577.83248802,0.000199,2]
[358425877,1745133032040,-300.0,0.00019985,2]
[358425878,1745133032050,-283.826364,0.00019986,2]
[358425879,1745133032059,-808.393142,0.00019986,2]
[358425880,1745133032068,-4276.29900419,0.00019986,2]
[358425882,1745133032083,-67.45560821,0.00019986,2]
[358425884,1745133032092,-467.84844417,0.0001999,2]
[358425886,1745133032105,-261.67604313,0.00019999,2]
[358425897,1745133037798,-38.32395687,0.00019999,2]
[358425898,1745133037808,-500.0,0.00019999,2]
[358425899,1745133037817,-147.73765344,0.00019999,2]
[358425900,1745133037921,-352.26234656,0.00019999,2]
[358425901,1745133037931,-512.0,0.0002,2]
[358425902,1745133037940,-7605.73680644,0.0002,2]
[358425903,1745133037951,-589.97551441,0.0002,2]
[358425904,1745133038041,-126449.80847793,0.0002,2]
[358425905,1745133038051,-436829.37089353,0.0002,2]
[358425906,1745133038061,-3049.01638709,0.0002,2]
[358425907,1745133038071,-665999.29170238,0.0002,2]
[358425908,1745133038080,-500.0,0.0002,2]
[358425909,1745133038090,-158.11543487,0.0002,2]
[358425910,1745133038099,-6025.51785831,0.0002,2]
[358425911,1745133038109,-384.0,0.0002,2]
[358425912,1745133038124,-2708658.20009937,0.0002,2]
[358425920,1745133038529,-308417.41857998,0.0002,2]
[358425921,1745133038552,-19218.23614524,0.0002,2]
[358425922,1745133040240,-500.936161,0.0002,2]
[358425923,1745133040469,-331.07,0.0002,2]
[358425938,1745133045761,-3723.3062229,0.0002,2]
[358425939,1745133045773,-12852.60744953,0.0002,2]
[358425940,1745133045794,-1018.63198509,0.0002,2]
[358425941,1745133045911,-386.81143978,0.0002,2]
[358425962,1745133617555,122622.77051662,0.000231,120]
[358425963,1745133705792,367.94,0.0001923,2]
[358425964,1745133744701,250.0,0.00019061,2]
[358425965,1745133875017,450.0,0.00017,2]
[358425969,1745133964475,-830.6711691,0.00019628,2]
[358425970,1745133964516,-250.0,0.00019701,2]
[358425971,1745133964558,-830.6711691,0.00019768,2]
[358425972,1745133964597,-2908.92614781,0.000198,2]
[358425973,1745133964634,-21035.0,0.00019883,2]
[358425974,1745133964674,-150.196,0.00019899,2]
[358425975,1745133964711,-300.0,0.00019899,2]
[358425976,1745133964748,-17433.3694,0.000199,2]
[358425977,1745133964785,-150.8030844,0.000199,2]
[358425978,1745133964822,-5688.57666393,0.000199,2]
[358425979,1745133964858,-603.8024,0.000199,2]
[358425980,1745133964897,-15264.88480812,0.000199,2]
[358425981,1745133964932,-553.75814408,0.000199,2]
[358425982,1745133964971,-999.34101346,0.000199,2]
[358425985,1745134070253,626.80115585,0.000232,20]
[358425986,1745134083205,1036.0,0.000305,30]
[358425987,1745134099129,22017.51,0.00019203,2]
[358425988,1745134107047,1144.35,0.00019203,2]
[358425996,1745134195754,751.67,0.00017285,2]
[358426006,1745134232094,-751.67,0.00019549,2]
[358426007,1745134232103,-166.66,0.00019779,2]
[358426008,1745134232113,-2002.0,0.000198,2]
[358426009,1745134232123,-250.0,0.0001985,2]
[358426010,1745134232133,-382.4543,0.000199,2]
[358426011,1745134232142,-369.17209604,0.000199,2]
[358426012,1745134232151,-1222.8871409,0.000199,2]
[358426013,1745134232161,-683.30427703,0.000199,2]
[358426014,1745134232170,-500.0,0.00019945,2]
[358426015,1745134232179,-500.0,0.00019973,2]
[358426016,1745134232188,-500.0,0.00019973,2]
[358426017,1745134232198,-500.0,0.00019973,2]
[358426018,1745134232207,-631.83056456,0.00019976,2]
[358426019,1745134232217,-300.0,0.00019985,2]
[358426020,1745134232226,-350.6399188,0.00019986,2]
[358426022,1745134232237,-5421.7827791,0.00019986,2]
[358426024,1745134232246,-998.6912479,0.00019986,2]
[358426026,1745134232256,-244.87,0.0001999,2]
[358426028,1745134232265,-244.87,0.0001999,2]
[358426030,1745134232274,-275.5942214,0.00019999,2]
[358426032,1745134232283,-192.91595497,0.00019999,2]
[358426034,1745134232293,-300.0,0.00019999,2]
[358426036,1745134232302,-500.0,0.00019999,2]
[358426037,1745134232310,-1778.26855289,0.0002,2]
[358426040,1745134232322,-15214.68100295,0.0002,2]
[358426173,1745134238287,-485.72064282,0.000199,2]
[358426174,1745134238296,-113763.41008255,0.0002,2]
[358426175,1745134238306,-3833804.19012811,0.0002,2]
[358426176,1745134238317,-308417.41857998,0.0002,2]
[358426186,1745134238516,-625.43120454,0.0002,2]
[358426228,1745134240333,-617.23609784,0.0002,2]
[358426229,1745134240344,-416.04249015,0.0002,2]
[358426230,1745134240424,-1220.67264819,0.0002,2]
[358426231,1745134240435,-290.38985004,0.0002,2]
[358426349,1745134243012,-9742.59477464,0.0002,2]
[358426352,1745134243174,-384.42260396,0.0002,2]
[358426353,1745134243185,-710.78542778,0.0002,2]
[358426354,1745134243196,-503.84467783,0.0002,2]
[358426355,1745134243207,-640.25240238,0.0002,2]
[358426383,1745134245935,-6598.12858576,0.0002,2]
[358426389,1745134246028,-678.72399091,0.0002,2]
[358426396,1745134246124,-182450.56215421,0.0002,2]
[358426398,1745134246135,-62554.27180934,0.0002,2]
[358426399,1745134246147,-6487.33388835,0.0002,2]
[358426401,1745134246158,-483.69630407,0.0002,2]
[358426467,1745134327768,163.15,0.00027425,30]
[358426481,1745135292410,-445.08683031,0.00019575,2]
[358426487,1745135307045,676.5,0.00018308,2]
[358426488,1745135316867,-2730.58642479,0.00019477,2]
[358426489,1745135316978,-845.52581121,0.00019477,2]
[358426490,1745135317022,-6.96870514,0.00019675,2]
[358426491,1745135341796,-1000.0,0.00019476,2]
[358426492,1745135341844,-16.34502767,0.00019575,2]
[358426493,1745135432086,-1000.0,0.00019575,2]
[358426494,1745135432097,-250.0,0.00019576,2]
[358426495,1745135432107,-243.11719965,0.00019577,2]
[358426496,1745135432116,-210.6263,0.000198,2]
[358426497,1745135432126,-395.80328687,0.00019885,2]
[358426498,1745135432140,-500.0,0.0001989,2]
[358426499,1745135432150,-491.6683,0.000199,2]
[358426500,1745135432159,-454.69101169,0.000199,2]
[358426501,1745135432169,-246.1147307,0.000199,2]
[358426502,1745135432179,-232.0,0.00019968,2]
[358426503,1745135432188,-185.88208965,0.00019973,2]
[358426504,1745135432198,-503.86766357,0.00019973,2]
[358426505,1745135432207,-506.41551795,0.00019973,2]
[358426506,1745135432216,-500.0,0.00019973,2]
[358426507,1745135432226,-500.0,0.00019973,2]
[358426508,1745135432235,-150.196,0.00019986,2]
[358426509,1745135432245,-5229.1633884,0.00019986,2]
[358426510,1745135432255,-181.0,0.00019986,2]
[358426511,1745135432264,-967.665809,0.00019986,2]
[358426512,1745135432274,-282.8508667,0.00019986,2]
[358426513,1745135432283,-247.973,0.00019999,2]
[358426514,1745135432293,-122796.69246789,0.0002,2]
[358426515,1745135432303,-182663.59600583,0.0002,2]
[358426516,1745135432315,-298.86,0.0002,2]
[358426517,1745135432327,-2476.80862768,0.0002,2]
[358426518,1745135432362,-653.51,0.0002,2]
[358426519,1745135432373,-3894.63008053,0.0002,2]
[358426520,1745135432384,-2467.42181425,0.0002,2]
[358426521,1745135432395,-534.81941086,0.0002,2]
[358426522,1745135432406,-2118.99748916,0.0002,2]
[358426547,1745135438434,-187.09527372,0.00019785,2]
[358426548,1745135438444,-2065.402,0.000199,2]
[358426549,1745135438453,-3105.70272855,0.0002,2]
[358426550,1745135438475,-1540403.80167515,0.0002,2]
[358426551,1745135438485,-602409.73411064,0.0002,2]
[358426552,1745135438494,-211.0,0.0002,2]
[358426553,1745135438505,-211.0,0.0002,2]
[358426554,1745135438514,-211.0,0.0002,2]
[358426555,1745135438524,-211.0,0.0002,2]
[358426556,1745135438533,-211.0,0.0002,2]
[358426557,1745135438544,-5520.0,0.0002,2]
[358426558,1745135438554,-406862.55992976,0.0002,2]
[358426559,1745135438563,-500.0,0.0002,2]
[358426560,1745135438573,-500.0,0.0002,2]
[358426561,1745135438582,-495.0,0.0002,2]
[358426562,1745135438592,-185.56773527,0.0002,2]
[358426564,1745135438601,-375.840132,0.0002,2]
[358426565,1745135438610,-375.840132,0.0002,2]
[358426567,1745135438619,-375.840132,0.0002,2]
[358426568,1745135438628,-375.840132,0.0002,2]
[358426569,1745135438637,-375.840132,0.0002,2]
[358426571,1745135438646,-158.018348,0.0002,2]
[358426572,1745135438656,-150.0,0.0002,2]
[358426573,1745135438665,-150.0,0.0002,2]
[358426574,1745135438674,-150.0,0.0002,2]
[358426575,1745135438683,-150.0,0.0002,2]
[358426576,1745135438693,-1730.6635473,0.0002,2]
[358426577,1745135438703,-161.63712,0.0002,2]
[358426578,1745135438712,-849.13654203,0.0002,2]
[358426579,1745135438722,-2002.94424504,0.0002,2]
[358426580,1745135438731,-411.31431,0.0002,2]
[358426581,1745135438740,-411.31431,0.0002,2]
[358426582,1745135438749,-411.31431,0.0002,2]
[358426583,1745135438759,-411.31431,0.0002,2]
[358426584,1745135438768,-411.31431,0.0002,2]
[358426586,1745135438777,-384.0,0.0002,2]
[358426588,1745135438787,-158.12782067,0.0002,2]
[358426590,1745135438796,-5688.57666393,0.0002,2]
[358426592,1745135438805,-461.846398,0.0002,2]
[358426594,1745135438814,-461.846398,0.0002,2]
[358426596,1745135438823,-461.846398,0.0002,2]
[358426598,1745135438832,-461.846398,0.0002,2]
[358426600,1745135438841,-461.846398,0.0002,2]
[358426601,1745135438850,-1372724.81791569,0.0002,2]
[358426604,1745135438862,-308417.41857998,0.0002,2]
[358426608,1745135438897,-509.37454104,0.0002,2]
[358426780,1745135440585,-187.09527371,0.0001979,2]
[358426782,1745135440595,-3176.03477621,0.0002,2]
[358426784,1745135440607,-4682.02666871,0.0002,2]
[358426797,1745135440724,-811.69657822,0.0002,2]
[358426905,1745135441964,-278.69880006,0.0002,2]
[358426919,1745135442100,-797.6518777,0.0002,2]
[358427232,1745135446253,-485.72064282,0.000199,2]
[358427233,1745135446264,-866.87935718,0.0002,2]
[358427234,1745135446276,-16607.10978684,0.0002,2]
[358427235,1745135446286,-4008.2559074,0.0002,2]
[358427236,1745135446298,-1688.0,0.0002,2]
[358427255,1745135510113,196.56847983,0.000199,3]
[358427257,1745135523744,250.0,0.00019936,5]
[358427258,1745135523811,250.0,0.00019969,5]
[358427259,1745135529643,163.15,0.00027425,30]
[358427260,1745135546005,151.0,0.0003,30]
[358427261,1745135546355,151.0,0.0003,30]
[358427262,1745135546653,151.0,0.0003,30]
[358427266,1745135641467,196.56847982,0.000199,3]
[358427267,1745135643086,250.0,0.0001975,5]
[358427269,1745135973776,201.26,0.00019162,2]
[358427270,1745136114593,167.83,0.00019162,2]
[358427271,1745136211188,2626.13,0.00019162,2]
[358427272,1745136225318,500.0,0.00032,60]
[358427273,1745136245104,250.0,0.00019162,2]
[358427274,1745136303149,244.84,0.00019144,2]
[358427275,1745136333203,-1500.0,0.000196,2]
[358427276,1745136333224,-250.0,0.00019659,2]
[358427277,1745136333244,-160.05,0.0001971,2]
[358427278,1745136333264,-500.0,0.00019836,2]
[358427279,1745136333285,-300.0,0.00019872,2]
[358427280,1745136333304,-166.90611254,0.00019873,2]
[358427281,1745136333324,-155.87404333,0.00019873,2]
[358427282,1745136333344,-169.37299969,0.00019873,2]
[358427283,1745136333364,-503.85759479,0.00019873,2]
[358427284,1745136333384,-159.77604358,0.00019873,2]
[358427285,1745136333405,-207.18596711,0.00019873,2]
[358427286,1745136333425,-500.0,0.00019873,2]
[358427287,1745136333445,-160.04738265,0.00019873,2]
[358427288,1745136333466,-459.13732839,0.00019873,2]
[358427289,1745136333486,-367.96616941,0.00019873,2]
[358427290,1745136333507,-379.24039114,0.00019873,2]
[358427291,1745136333526,-161.34545221,0.00019873,2]
[358427292,1745136333546,-500.0,0.00019873,2]
[358427293,1745136333567,-500.0,0.0001989,2]
[358427294,1745136333588,-170.875,0.00019899,2]
[358427295,1745136333608,-198.161,0.00019899,2]
[358427296,1745136333632,-250.0,0.00019899,2]
[358427297,1745136333653,-1000.0,0.000199,2]
[358427298,1745136333674,-75445.44433466,0.000199,2]
[358427300,1745136356083,-3278.07176534,0.000199,2]
[358427301,1745136356105,-164.07648714,0.000199,2]
[358427302,1745136356127,-1082.99019394,0.000199,2]
[358427303,1745136356150,-1000.0,0.00019936,2]
[358427304,1745136356171,-500.0,0.00019973,2]
[358427305,1745136356192,-509.58946346,0.00019973,2]
[358427306,1745136356213,-319.24696835,0.00019973,2]
[358427307,1745136356234,-160.50273916,0.00019973,2]
[358427308,1745136356255,-160.30253746,0.00019973,2]
[358427309,1745136356275,-161.929831,0.00019973,2]
[358427310,1745136356296,-500.0,0.00019973,2]
[358427311,1745136356318,-503.41621307,0.00019973,2]
[358427312,1745136356340,-622.916277,0.00019973,2]
[358427313,1745136356362,-500.0,0.00019973,2]
[358427314,1745136356382,-168.08548297,0.00019973,2]
[358427315,1745136356403,-500.0,0.00019973,2]
[358427316,1745136356423,-500.0,0.00019973,2]
[358427317,1745136356444,-343.16615034,0.00019973,2]
[358427318,1745136356465,-299.93494927,0.00019973,2]
[358427319,1745136356486,-501.29531832,0.00019973,2]
[358427320,1745136356507,-501.29420571,0.00019973,2]
[358427321,1745136356527,-502.11103475,0.00019973,2]
[358427322,1745136356547,-206.38201054,0.00019973,2]
[358427323,1745136356568,-1000.0,0.00019986,2]
[358427324,1745136356588,-376.8895689,0.00019986,2]
[358427325,1745136356608,-5634.8517061,0.00019986,2]
[358427326,1745136356629,-193.055568,0.00019986,2]
[358427327,1745136356649,-1036.9344882,0.00019986,2]
[358427328,1745136356669,-1000.0,0.00019999,2]
[358427329,1745136356690,-1000.0,0.00019999,2]
[358427330,1745136356718,-28494.35786061,0.0002,2]
[358427331,1745136357264,708.11,0.00018272,2]
[358427332,1745136428092,-546.54646317,0.00019873,2]
[358427333,1745136428113,-500.0,0.00019873,2]
[358427334,1745136428134,-323.81376188,0.000199,2]
[358427335,1745136428156,-500.0,0.00019973,2]
[358427336,1745136428177,-500.0,0.00019973,2]
[358427337,1745136428199,-300.0,0.00019985,2]
[358427338,1745136428220,-790.538783,0.00019986,2]
[358427339,1745136428242,-3380.3944053,0.00019986,2]
[358427340,1745136428272,-226.099187,0.00019986,2]
[358427341,1745136428303,-93716.71747661,0.0002,2]
[358427342,1745136429089,-16888.98561395,0.0002,2]
[358427343,1745136429114,-24914.76489162,0.0002,2]
[358427344,1745136439087,-500.0,0.00019973,2]
[358427345,1745136439111,-30403.57144544,0.0002,2]
[358427346,1745136447122,-164.07648712,0.000199,2]
[358427347,1745136447144,-6956.16219575,0.0002,2]
[358427348,1745136453133,-721.99346262,0.000199,2]
[358427349,1745136453157,-57503.01082161,0.0002,2]
[358427355,1745136632282,-164.07648712,0.000199,2]
[358427356,1745136632292,-481.32897508,0.000199,2]
[358427357,1745136632303,-591.19722479,0.00019973,2]
[358427358,1745136632314,-159.71085133,0.00019973,2]
[358427359,1745136632323,-500.0,0.00019973,2]
[358427360,1745136632333,-41339.0611889,0.0002,2]
[358427361,1745136632351,-1954.96368352,0.0002,2]
[358427362,1745136632362,-365.19994533,0.0002,2]
[358427363,1745136632396,-11643.62672753,0.0002,2]
[358427364,1745136632406,-49619.50490837,0.0002,2]
[358427365,1745136632418,-948.9,0.0002,2]
[358427366,1745136632430,-610.44814184,0.0002,2]
[358427367,1745136632473,-906.39902766,0.0002,2]
[358427368,1745136632484,-1166.26282641,0.0002,2]
[358427369,1745136632509,-12512.00166556,0.0002,2]
[358427370,1745136632540,-312.5,0.0002,2]
[358427371,1745136632552,-970.99304133,0.0002,2]
[358427372,1745136632575,-1073.90425003,0.0002,2]
[358427373,1745136632586,-564.09140236,0.0002,2]
[358427374,1745136632611,-927.61514,0.0002,2]
[358427375,1745136632624,-1343.02500153,0.0002,2]
[358427376,1745136632636,-5161.05221519,0.0002,2]
[358427377,1745136632648,-1077.4922858,0.0002,2]
[358427398,1745136638487,-11568.6154122,0.0002,2]
[358427399,1745136638499,-4770.83653177,0.0002,2]
[358427400,1745136638510,-3600.0,0.0002,2]
[358427401,1745136638521,-3948634.58985348,0.0002,2]
[358427402,1745136638532,-308417.41857998,0.0002,2]
[358427403,1745136638543,-358.33485164,0.0002,2]
[358427404,1745136638554,-689.32368187,0.0002,2]
[358427405,1745136638803,-166848.87620139,0.0002,2]
[358427406,1745136638836,-6469.43898375,0.0002,2]
[358427407,1745136638914,-337.93778219,0.0002,2]
[358427408,1745136638926,-96869.26836964,0.0002,2]
[358427410,1745136640638,-1500.0,0.0002,2]
[358427411,1745136640719,-82871.60837227,0.0002,2]
[358427412,1745136640731,-2996.28,0.0002,2]
[358427415,1745136645106,-102532.32356723,0.0002,2]
[358427423,1745136647017,-8151.78826796,0.0002,2]
[358427424,1745136647167,-385.50172046,0.0002,2]
[358427425,1745136647186,-2792.17873643,0.0002,2]
[358427426,1745136647197,-466.99740775,0.0002,2]
[358427427,1745136647302,-199794.0663084,0.0002,2]
[358427428,1745136647351,-14115.13618965,0.0002,2]
[358427429,1745136666895,163.15,0.00027425,30]
[358427430,1745136729762,329.051448,0.00019997,5]
[358427431,1745136730285,329.051448,0.0001999,5]
[358427432,1745136730800,329.051448,0.00019983,5]
[358427433,1745136730886,329.051448,0.00019976,5]
[358427434,1745136731215,329.051448,0.00019969,5]
[358427435,1745136731521,329.051448,0.0001999,3]
[358427436,1745136731836,329.051448,0.0001999,3]
[358427437,1745136732148,329.051448,0.0001999,3]
[358427438,1745136732438,329.051448,0.0001999,3]
[358427439,1745136732734,329.051448,0.0001999,3]
[358427440,1745136846643,188.715,0.000305,30]
[358427441,1745137092006,-170.875,0.000196,2]
[358427442,1745137092029,-250.0,0.0001975,2]
[358427443,1745137092052,-1719.5516,0.000199,2]
[358427444,1745137092074,-634.9894,0.000199,2]
[358427445,1745137092096,-658.1722,0.000199,2]
[358427446,1745137092117,-579.46628497,0.000199,2]
[358427447,1745137092139,-181.48435552,0.00019973,2]
[358427448,1745137092162,-181.5401039,0.00019986,2]
[358427449,1745137092185,-631.8748108,0.00019986,2]
[358427450,1745137092209,-2701.9371108,0.00019986,2]
[358427451,1745137092233,-252.92591309,0.00019999,2]
[358427452,1745137092256,-176.03701977,0.00019999,2]
[358427453,1745137092280,-1057856.84764019,0.0002,2]
[358427454,1745137092304,-3049.01638709,0.0002,2]
[358427455,1745137092328,-666240.02961259,0.0002,2]
[358427456,1745137092351,-185.88208965,0.0002,2]
[358427457,1745137092376,-156.600056,0.0002,2]
[358427458,1745137092401,-156.600056,0.0002,2]
[358427459,1745137092425,-156.600056,0.0002,2]
[358427460,1745137092450,-153.948799,0.0002,2]
[358427461,1745137092474,-153.948799,0.0002,2]
[358427462,1745137092498,-153.948799,0.0002,2]
[358427463,1745137092522,-153.948799,0.0002,2]
[358427464,1745137092545,-281.880099,0.0002,2]
[358427465,1745137092568,-281.880099,0.0002,2]
[358427466,1745137092591,-281.880099,0.0002,2]
[358427467,1745137092614,-281.880099,0.0002,2]
[358427468,1745137092636,-158.018348,0.0002,2]
[358427469,1745137092660,-281.880099,0.0002,2]
[358427470,1745137092683,-163.965265,0.0002,2]
[358427471,1745137092705,-199.72125462,0.0002,2]
[358427472,1745137092728,-150.0,0.0002,2]
[358427473,1745137092751,-151.08333913,0.0002,2]
[358427474,1745137092773,-500.0,0.0002,2]
[358427475,1745137092796,-500.0,0.0002,2]
[358427476,1745137092820,-151.13320077,0.0002,2]
[358427477,1745137092844,-150.0,0.0002,2]
[358427478,1745137092868,-151.11175676,0.0002,2]
[358427479,1745137092891,-150.0,0.0002,2]
[358427480,1745137092912,-150.0,0.0002,2]
[358427481,1745137092934,-384.0,0.0002,2]
[358427482,1745137092956,-500.0,0.0002,2]
[358427483,1745137092978,-500.0,0.0002,2]
[358427484,1745137093000,-500.0,0.0002,2]
[358427485,1745137093022,-150.0,0.0002,2]
[358427486,1745137093043,-150.0,0.0002,2]
[358427487,1745137093065,-150.0,0.0002,2]
[358427488,1745137093243,-150.0,0.0002,2]
[358427489,1745137093266,-1730.6635473,0.0002,2]
[358427490,1745137093289,-161.63712,0.0002,2]
[358427491,1745137093315,-2002.94424504,0.0002,2]
[358427492,1745137093338,-849.13654203,0.0002,2]
[358427493,1745137093361,-329.051448,0.0002,2]
[358427494,1745137093383,-329.051448,0.0002,2]
[358427495,1745137093408,-329.051448,0.0002,2]
[358427496,1745137093432,-323.11765978,0.0002,2]
[358427497,1745137128366,887.81059696,0.00019986,2]
[358427498,1745137401177,2255.4955623,0.00019986,2]
[358427499,1745137414376,153.9488,0.0001999,3]
[358427500,1745137416481,153.9488,0.0001999,3]
[358427501,1745137424329,289.423742,0.0001999,3]
[358427502,1745137424627,289.423742,0.0001999,3]
[358427503,1745137424929,289.423742,0.0001999,3]
[358427504,1745137425357,289.423742,0.0001999,3]
[358427505,1745137425646,289.423742,0.0001999,3]
[358427506,1745137428408,672.7,0.00017725,2]
[358427507,1745137441251,250.0,0.00019988,5]
[358427508,1745137452692,508.2064414,0.00019986,2]
[358427509,1745137521012,226.76250202,0.00019642,2]
[358427512,1745137562840,250.0,0.00019721,5]
[358427515,1745137718405,301.52,0.00019151,2]
[358427524,1745137770676,163.15,0.00027425,30]
[358427529,1745137831613,-346.49749798,0.00019642,2]
[358427530,1745137831623,-250.0,0.00019721,2]
[358427531,1745137831633,-376.11342193,0.000198,2]
[358427532,1745137831695,-2551.93954754,0.000198,2]
[358427533,1745137831708,-585.30398229,0.000198,2]
[358427534,1745137831743,-9624.06666677,0.000198,2]
[358427535,1745137831755,-500.0,0.00019918,2]
[358427536,1745137831766,-500.0,0.00019918,2]
[358427537,1745137831775,-502.0,0.00019945,2]
[358427538,1745137831785,-4550.97510268,0.00019986,2]
[358427539,1745137831795,-672.7,0.00019989,2]
[358427540,1745137831805,-1099.5363345,0.0001999,2]
[358427541,1745137831814,-327.0798676,0.00019999,2]
[358427542,1745137831823,-177.04813916,0.00019999,2]
[358427543,1745137831836,-5.93378822,0.0002,2]
[358427544,1745137831846,-245.78669424,0.0002,2]
[358427545,1745137831863,-83.26475376,0.0002,2]
[358427546,1745137831872,-289.423742,0.0002,2]
[358427547,1745137831881,-2317.91277544,0.0002,2]
[358427548,1745137831893,-300.0,0.0002,2]
[358427549,1745137831909,-1166.6660776,0.0002,2]
[358427550,1745137831924,-1124.49855846,0.0002,2]
[358427557,1745137837668,-3300.0,0.0002,2]
[358427558,1745137837830,-141493.7083637,0.0002,2]
[358427559,1745137837843,-2360.53565807,0.0002,2]
[358427560,1745137837990,-308417.41857998,0.0002,2]
[358427561,1745137838002,-3942.0806084,0.0002,2]
[358427562,1745137838013,-430.13999785,0.0002,2]
[358427590,1745137839996,-589.97413947,0.0002,2]
[358427591,1745137840155,-1043.87316363,0.0002,2]
[358427610,1745137845628,-320.88598338,0.000199,2]
[358427611,1745137845638,-426.24224154,0.0002,2]